bitfinex/quotes_SOLUSD_20250313
["timestamp","ask_amount","ask_price","bid_price","bid_amount"]
[1741844880937,0.063,123.86,123.85,221.0753878]
[1741844882147,0.063,123.86,123.85,222.98081094]
[1741844884949,0.063,123.86,123.85,222.83864937]
[1741844885148,0.063,123.86,123.85,222.98081094]
[1741844886740,0.063,123.9,123.87,15.57753894]
[1741844887045,0.063,123.9,123.88,7.32]
[1741844887646,15.64053894,123.9,123.87,178.711]
[1741844888856,8.134,123.9,123.87,178.711]
[1741844890141,23.71153894,123.9,123.87,178.711]
[1741844891046,8.134,123.9,123.87,178.711]
[1741844892563,23.71153894,123.9,123.87,40.211]
[1741844894148,8.134,123.9,123.87,40.211]
[1741844899762,0.063,123.9,123.88,15.57753894]
[1741844900066,0.063,123.9,123.87,55.78853894]
[1741844900258,0.063,123.9,123.87,40.211]
[1741844901665,0.063,123.9,123.87,55.78853894]
[1741844902057,0.063,123.9,123.88,15.57753894]
[1741844902368,0.063,123.9,123.89,15.57753894]
[1741844902542,0.063,123.9,123.89,194.28853894]
[1741844902743,0.063,123.9,123.89,202.36013894]
[1741844903365,0.063,123.9,123.89,221.0097878]
[1741844905777,0.063,123.9,123.89,194.28853894]
[1741844906084,0.063,123.9,123.89,186.031]
[1741844906569,0.063,123.9,123.89,7.32]
[1741844908770,0.063,123.9,123.89,40.211]
[1741844909275,15.64053894,123.9,123.89,40.211]
[1741844909777,0.063,123.9,123.89,40.211]
[1741844909954,0.063,123.9,123.89,202.36013894]
[1741844913265,0.063,123.9,123.89,221.0097878]
[1741844913462,0.063,123.9,123.89,221.29411094]
[1741844914271,0.063,123.92,123.91,58.79764886]
[1741844914455,0.063,123.92,123.91,220.1951878]
[1741844914784,0.063,123.92,123.91,185.968]
[1741844915966,0.063,123.92,123.91,47.468]
[1741844918080,15.64053894,123.92,123.88,40.148]
[1741844918374,15.57753894,123.89,123.86,40.211]
[1741844919491,15.57753894,123.9,123.86,40.211]
[1741844919678,23.64783894,123.91,123.86,55.78853894]
[1741844919882,23.71033894,123.92,123.86,63.86203894]
[1741844920360,32.4440858,123.92,123.86,72.5957858]
[1741844920561,24.3112858,123.91,123.86,72.5957858]
[1741844921380,32.3815858,123.91,123.86,72.5957858]
[1741844921586,32.3815858,123.91,123.86,79.9157858]
[1741844921958,32.3815858,123.91,123.86,71.8422858]
[1741844922464,8.0703,123.91,123.86,79.9156858]
[1741844922681,32.4441858,123.92,123.86,79.9156858]
[1741844923786,24.3112858,123.89,123.86,47.531]
[1741844924283,24.3112858,123.9,123.86,47.531]
[1741844925488,24.3112858,123.9,123.86,40.211]
[1741844925672,24.3112858,123.88,123.86,40.211]
[1741844926062,32.3828858,123.89,123.86,40.211]
[1741844926373,32.3824858,123.9,123.86,40.211]
[1741844927481,24.3742858,123.92,123.86,72.5955858]
[1741844927676,24.3742858,123.92,123.87,24.3112858]
[1741844928081,24.3742858,123.92,123.88,24.3112858]
[1741844928082,8.1331,123.92,123.88,24.3112858]
[1741844928888,8.1331,123.92,123.87,31.6312858]
[1741844929264,0.063,123.92,123.89,24.3112858]
[1741844929467,0.063,123.92,123.89,64.4592858]
[1741844931092,0.063,123.92,123.9,24.3112858]
[1741844931667,0.063,123.92,123.9,64.4592858]
[1741844932567,0.063,123.92,123.9,72.5301858]
[1741844933092,0.063,123.92,123.9,64.4592858]
[1741844933284,0.063,123.92,123.9,40.148]
[1741844938292,0.063,123.92,123.9,72.5301858]
[1741844938886,0.063,123.92,123.91,24.3112858]
[1741844940295,0.063,123.92,123.9,64.4592858]
[1741844940476,0.063,123.92,123.9,72.5301858]
[1741844940891,0.063,123.92,123.9,48.2189]
[1741844941195,0.063,123.92,123.9,72.5301858]
[1741844942088,0.063,123.92,123.91,24.3112858]
[1741844942288,0.063,123.92,123.91,194.19452514]
[1741844943071,0.063,123.92,123.91,202.26482514]
[1741844943788,0.063,123.92,123.91,82.69879714]
[1741844943975,0.063,123.93,123.92,0.28432314]
[1741844944180,0.063,123.93,123.92,201.77884828]
[1741844944690,0.063,123.94,123.92,532.42849714]
[1741844944892,0.063,123.95,123.94,54.196174]
[1741844945094,0.063,123.95,123.94,62.264574]
[1741844945774,0.063,123.95,123.94,60.148]
[1741844946084,0.063,123.95,123.94,40.148]
[1741844946481,24.35500482,123.95,123.91,40.211]
[1741844946881,0.063,123.95,123.91,64.50300482]
[1741844947096,0.063,123.95,123.91,40.211]
[1741844947271,24.29200482,123.94,123.91,40.211]
[1741844947470,0.063,123.95,123.91,0.063]
[1741844947471,24.29200482,123.92,123.91,0.063]
[1741844947692,24.29200482,123.93,123.91,0.063]
[1741844948190,24.29200482,123.92,123.91,0.063]
[1741844949195,32.36170482,123.92,123.91,0.063]
[1741844949995,8.0697,123.92,123.91,0.063]
[1741844953102,32.36120482,123.93,123.91,0.063]
[1741844953403,32.36050482,123.94,123.91,0.063]
[1741844954306,24.29200482,123.93,123.91,0.063]
[1741844955000,24.29200482,123.92,123.91,0.063]
[1741844956205,34.28162796,123.92,123.91,0.063]
[1741844956704,72.96341525,123.92,123.86,0.063]
[1741844956886,24.29200482,123.88,123.86,0.063]
[1741844957285,9.7053,123.92,123.86,0.063]
[1741844957606,24.29200482,123.91,123.86,107.15500482]
[1741844957803,24.29200482,123.91,123.86,114.45500482]
[1741844957988,24.29200482,123.91,123.86,90.163]
[1741844958684,32.36230482,123.91,123.86,90.163]
[1741844959105,24.29200482,123.89,123.86,82.863]
[1741844959308,24.29200482,123.88,123.86,0.063]
[1741844959784,24.29200482,123.89,123.86,0.063]
[1741844960107,24.29200482,123.9,123.86,0.063]
[1741844960492,32.36330482,123.9,123.86,0.063]
[1741844960997,24.29200482,123.91,123.86,24.35500482]
[1741844961191,25.92760482,123.92,123.86,107.15500482]
[1741844961409,24.32200482,123.93,123.88,24.29200482]
[1741844961584,24.32200482,123.93,123.87,31.59200482]
[1741844962404,8.0703,123.91,123.87,7.3]
[1741844962608,24.29200482,123.9,123.87,7.3]
[1741844962803,24.29200482,123.89,123.87,7.3]
[1741844963090,24.29200482,123.89,123.86,82.863]
[1741844964495,32.36380482,123.89,123.86,82.863]
[1741844964802,32.36380482,123.89,123.86,0.063]
[1741844964999,24.29200482,123.88,123.86,0.063]
[1741844965218,8.0718,123.89,123.86,0.063]
[1741844965219,24.29200482,123.87,123.86,0.063]
[1741844965423,24.29200482,123.88,123.86,0.063]
[1741844966129,24.29200482,123.9,123.86,0.063]
[1741844966420,32.36310482,123.9,123.86,0.063]
[1741844966718,24.29200482,123.89,123.86,0.063]
[1741844966892,24.29200482,123.88,123.86,0.063]
[1741844969014,32.36440482,123.88,123.86,0.063]
[1741844970019,24.29200482,123.89,123.86,0.063]
[1741844970326,32.36300482,123.9,123.86,0.063]
[1741844970499,24.29200482,123.88,123.86,0.063]
[1741844971214,8.0729,123.87,123.86,0.063]
[1741844971819,32.36490482,123.87,123.86,0.063]
[1741844972309,8.071,123.9,123.86,0.063]
[1741844972517,24.29200482,123.89,123.86,0.063]
[1741844973323,32.36300482,123.9,123.86,0.063]
[1741844973921,8.071,123.9,123.86,0.063]
[1741844974136,24.29200482,123.87,123.86,0.063]
[1741844975422,32.36490482,123.87,123.86,0.063]
[1741844975995,1.88852314,123.86,123.85,0.063]
[1741844976194,26.18052796,123.86,123.85,0.063]
[1741844976405,25.89620482,123.86,123.85,0.063]
[1741844976600,8.0729,123.87,123.85,0.063]
[1741844976601,24.29200482,123.87,123.85,0.063]
[1741844976825,24.29200482,123.88,123.85,0.063]
[1741844977504,32.36450482,123.88,123.85,0.063]
[1741844978018,24.29200482,123.87,123.85,0.063]
[1741844979503,32.36510482,123.87,123.85,0.063]
[1741844979908,24.29200482,123.86,123.85,0.063]
[1741844980111,24.57632796,123.86,123.85,0.063]
[1741844981011,24.29200482,123.86,123.85,0.063]
[1741844981818,32.36560482,123.86,123.85,0.063]
[1741844982205,32.64992796,123.86,123.85,0.063]
[1741844985899,51.29957682,123.86,123.85,0.063]
[1741844986105,24.57632796,123.85,123.84,0.0001]
[1741844986811,32.65052796,123.85,123.84,0.0001]
[1741844988404,51.30017682,123.85,123.84,0.0001]
[1741844988905,32.65052796,123.85,123.84,0.0001]
[1741844990308,32.36620482,123.85,123.84,0.0001]
[1741844993532,24.29200482,123.85,123.84,0.0001]
[1741844994230,8.0736,123.86,123.84,0.0001]
[1741844994431,24.29200482,123.85,123.84,0.0001]
[1741844995532,32.36620482,123.85,123.84,0.0001]
[1741844996614,32.50836639,123.85,123.84,0.0001]
[1741844997018,0.14216157,123.84,123.81,0.03]
[1741844997336,24.57632796,123.82,123.81,0.03]
[1741844997631,32.65252796,123.82,123.81,0.03]
[1741845000533,32.51036639,123.82,123.81,0.03]
[1741845001143,8.0757,123.83,123.81,0.03]
[1741845001440,24.57632796,123.82,123.81,0.03]
[1741845002038,24.43416639,123.82,123.81,0.03]
[1741845002239,32.65252796,123.82,123.81,0.03]
[1741845002548,51.30217682,123.82,123.81,0.03]
[1741845003035,0.14216157,123.8,123.78,0.03]
[1741845003224,24.43416639,123.79,123.78,0.03]
[1741845003822,24.57632796,123.79,123.78,0.03]
[1741845004333,32.65442796,123.79,123.78,0.03]
[1741845004546,32.51226639,123.79,123.78,0.03]
[1741845007120,24.29200482,123.81,123.78,0.03]
[1741845009939,32.36890482,123.81,123.78,0.03]
[1741845010117,24.29200482,123.81,123.78,0.03]
[1741845010945,32.54056639,123.82,123.78,0.03]
[1741845011138,0.03,123.82,123.79,24.29200482]
[1741845011332,0.03,123.82,123.8,24.29200482]
[1741845011524,0.03,123.82,123.79,24.29200482]
[1741845011915,0.03,123.82,123.79,31.61200482]
[1741845012932,0.03,123.82,123.79,7.32]
[1741845013930,0.03,123.82,123.79,39.68980482]
[1741845015825,0.03,123.82,123.79,7.32]
[1741845016937,24.29200482,123.81,123.78,0.03]
[1741845017142,24.29200482,123.8,123.78,0.03]
[1741845017542,24.29200482,123.81,123.78,0.03]
[1741845018143,32.36890482,123.81,123.78,0.03]
[1741845018952,0.03,123.82,123.78,0.03]
[1741845019247,24.29200482,123.81,123.78,0.03]
[1741845019741,24.29200482,123.8,123.78,0.03]
[1741845020849,24.43416639,123.79,123.78,0.03]
[1741845021847,32.51226639,123.79,123.78,0.03]
[1741845025949,32.37010482,123.79,123.78,0.03]
[1741845026457,32.51226639,123.79,123.78,0.03]
[1741845027947,32.37010482,123.79,123.78,0.03]
[1741845028540,32.51226639,123.79,123.78,0.03]
[1741845031361,8.22026157,123.79,123.78,0.03]
[1741845031565,32.36880482,123.81,123.78,0.03]
[1741845031748,32.54046639,123.82,123.78,0.03]
[1741845032349,0.03,123.82,123.78,24.32200482]
[1741845033562,0.03,123.82,123.78,32.40080482]
[1741845033960,0.03,123.82,123.79,24.29200482]
[1741845034453,0.03,123.82,123.8,24.29200482]
[1741845034767,0.03,123.82,123.81,24.29200482]
[1741845034961,0.03,123.82,123.81,107.09200482]
[1741845035173,0.03,123.82,123.81,114.39200482]
[1741845036166,0.03,123.82,123.81,82.8]
[1741845037164,0.03,123.82,123.78,31.62200482]
[1741845037165,0.28432314,123.81,123.78,0.03]
[1741845037365,24.29200482,123.79,123.78,0.03]
[1741845037568,32.37010482,123.79,123.78,0.03]
[1741845037947,32.37010482,123.79,123.72,162.85500482]
[1741845037948,24.32,123.69,123.61,12.72615074]
[1741845038150,82.5,123.68,123.61,12.72615074]
[1741845038365,7.5,123.71,123.61,12.72615074]
[1741845038541,20.0,123.67,123.61,12.72615074]
[1741845038848,101.14964886,123.7,123.61,12.72615074]
[1741845038849,40.02304045,123.63,123.61,12.72615074]
[1741845039154,40.87521321,123.66,123.61,12.72615074]
[1741845039358,40.73305164,123.66,123.61,12.72615074]
[1741845039544,65.05552479,123.69,123.63,24.29200482]
[1741845039748,0.14216157,123.7,123.62,24.29200482]
[1741845039749,24.29200482,123.68,123.62,24.29200482]
[1741845039947,24.29200482,123.65,123.61,12.72615074]
[1741845040252,39.07430505,123.64,123.61,12.72615074]
[1741845040445,39.07430505,123.65,123.61,12.72615074]
[1741845040646,39.07430505,123.64,123.61,0.03]
[1741845041962,39.07430505,123.65,123.61,0.03]
[1741845042262,39.07430505,123.65,123.61,312.03]
[1741845042449,39.07430505,123.67,123.61,351.10430505]
[1741845042647,39.07430505,123.68,123.62,39.07430505]
[1741845042850,39.07430505,123.67,123.61,39.10430505]
[1741845043250,39.07430505,123.68,123.62,39.07430505]
[1741845043441,39.07430505,123.67,123.61,121.90430505]
[1741845043859,39.07430505,123.68,123.62,57.72395391]
[1741845044041,39.07430505,123.69,123.63,39.07430505]
[1741845044242,39.07430505,123.68,123.63,7.52]
[1741845044447,39.07430505,123.67,123.63,7.52]
[1741845045245,39.07430505,123.68,123.63,7.52]
[1741845045773,39.07430505,123.72,123.67,312.0]
[1741845045969,39.07430505,123.73,123.67,358.59430505]
[1741845046345,39.07430505,123.73,123.67,46.59430505]
[1741845047247,39.07430505,123.72,123.67,7.52]
[1741845047449,0.14216157,123.74,123.67,46.59430505]
[1741845047649,39.07430505,123.72,123.67,46.59430505]
[1741845047849,39.07430505,123.72,123.67,7.52]
[1741845048568,39.07430505,123.72,123.67,46.59430505]
[1741845048770,39.07430505,123.72,123.67,54.68020505]
[1741845049366,39.07430505,123.72,123.68,312.0]
[1741845050174,39.07430505,123.71,123.67,7.52]
[1741845050665,39.07430505,123.7,123.65,6.3346]
[1741845050866,39.07430505,123.67,123.63,8.0885]
[1741845051057,39.07430505,123.67,123.62,229.5291]
[1741845051673,39.07430505,123.67,123.62,261.10340505]
[1741845051877,39.07430505,123.68,123.62,268.60340505]
[1741845052056,34.23184886,123.73,123.62,221.44]
[1741845052057,39.07430505,123.66,123.62,221.44]
[1741845052674,39.07430505,123.65,123.62,213.94]
[1741845052878,39.07430505,123.66,123.62,213.94]
[1741845053172,39.21646662,123.67,123.62,222.0291]
[1741845053380,39.07430505,123.66,123.62,222.0291]
[1741845053677,39.07430505,123.66,123.62,213.94]
[1741845053979,39.07430505,123.66,123.62,222.0292]
[1741845054473,39.07430505,123.66,123.62,213.94]
[1741845055066,39.07430505,123.66,123.62,222.0291]
[1741845056175,39.07430505,123.66,123.62,222.0591]
[1741845056358,39.21646662,123.67,123.62,222.0591]
[1741845056564,39.07430505,123.68,123.63,39.07430505]
[1741845057281,39.07430505,123.68,123.64,8.0879]
[1741845058379,39.07430505,123.68,123.62,253.04430505]
[1741845058677,39.21646662,123.69,123.64,39.07430505]
[1741845059064,39.07430505,123.7,123.64,312.0]
[1741845059258,39.07430505,123.7,123.65,39.07430505]
[1741845059453,39.07430505,123.71,123.65,46.53430505]
[1741845059860,39.07430505,123.71,123.66,39.07430505]
[1741845060261,39.07430505,123.71,123.65,46.53430505]
[1741845060663,39.07430505,123.7,123.65,7.46]
[1741845060981,39.07430505,123.68,123.65,7.46]
[1741845061154,0.14216157,123.7,123.62,221.43]
[1741845061155,39.07430505,123.66,123.62,221.43]
[1741845061351,39.07430505,123.66,123.62,213.97]
[1741845061555,39.07430505,123.67,123.62,253.04430505]
[1741845061776,39.07430505,123.68,123.62,261.13350505]
[1741845062685,39.07430505,123.7,123.64,39.07430505]
[1741845063381,39.07430505,123.69,123.63,46.55430505]
[1741845063586,8.22576157,123.71,123.63,46.55430505]
[1741845063587,39.07430505,123.68,123.63,46.55430505]
[1741845063775,39.07430505,123.69,123.63,46.55430505]
[1741845063978,39.21646662,123.7,123.65,39.07430505]
[1741845064688,39.07430505,123.68,123.63,46.55430505]
[1741845064882,39.07430505,123.67,123.62,82.83]
[1741845065087,39.07430505,123.66,123.62,0.03]
[1741845065670,39.07430505,123.68,123.63,39.07430505]
[1741845065876,39.07430505,123.69,123.64,39.07430505]
[1741845066076,39.07430505,123.69,123.63,39.07430505]
[1741845066680,47.15950505,123.69,123.63,39.07430505]
[1741845068969,47.15950505,123.69,123.63,39.10430505]
[1741845069365,47.15950505,123.69,123.63,0.03]
[1741845071870,8.086,123.67,123.63,0.03]
[1741845073266,0.063,123.71,123.64,45.61550505]
[1741845073593,8.084,123.7,123.64,45.61550505]
[1741845074096,8.084,123.7,123.65,39.07430505]
[1741845074412,8.084,123.7,123.63,0.03]
[1741845074413,39.07430505,123.66,123.63,0.03]
[1741845074775,39.07430505,123.65,123.63,0.03]
[1741845075276,47.16170505,123.65,123.63,0.03]
[1741845075487,8.086,123.67,123.63,0.03]
[1741845075792,39.07430505,123.66,123.63,0.03]
[1741845076391,39.35862819,123.64,123.63,0.03]
[1741845077292,47.44652819,123.64,123.63,0.03]
[1741845077884,0.28432314,123.63,123.62,0.03]
[1741845078085,0.28432314,123.63,123.61,0.0001]
[1741845078086,78.43293324,123.62,123.61,0.0001]
[1741845078271,104.5425821,123.62,123.61,0.0001]
[1741845078475,20.0,123.59,123.54,6.3012]
[1741845078672,39.07430505,123.55,123.51,6.3012]
[1741845078885,39.07430505,123.54,123.51,6.3012]
[1741845079295,8.38082314,123.51,123.5,0.03]
[1741845079702,39.35862819,123.51,123.5,0.03]
[1741845079996,58.00827705,123.51,123.43,6.2339]
[1741845080196,39.07430505,123.47,123.43,6.2339]
[1741845080405,39.07430505,123.46,123.41,39.07430505]
[1741845080572,39.07430505,123.46,123.4,7.56]
[1741845080573,39.07430505,123.46,123.43,20.0]
[1741845080779,0.14216157,123.46,123.43,20.0]
[1741845081189,0.14216157,123.46,123.39,8.1043]
[1741845081190,39.21646662,123.46,123.39,8.1043]
[1741845081498,39.21646662,123.46,123.41,39.07430505]
[1741845081694,39.07430505,123.45,123.38,303.0539]
[1741845081870,39.07430505,123.43,123.36,82.8]
[1741845082078,39.07430505,123.42,123.36,39.07430505]
[1741845082277,0.14216157,123.42,123.37,39.07430505]
[1741845082494,39.21646662,123.46,123.4,39.07430505]
[1741845082795,39.21646662,123.46,123.37,7.58]
[1741845082796,0.14216157,123.45,123.41,39.07430505]
[1741845083102,39.07430505,123.46,123.41,39.07430505]
[1741845083306,0.14216157,123.47,123.43,39.07430505]
[1741845083472,39.07430505,123.48,123.43,39.07430505]
[1741845083676,39.07430505,123.48,123.42,7.58]
[1741845083677,39.07430505,123.46,123.42,7.58]
[1741845084190,39.21646662,123.44,123.38,39.07430505]
[1741845084590,39.07430505,123.43,123.38,39.07430505]
[1741845084795,0.14216157,123.43,123.38,39.07430505]
[1741845085096,7.72216157,123.46,123.38,39.07430505]
[1741845085295,0.14216157,123.44,123.39,39.07430505]
[1741845085491,39.07430505,123.46,123.4,39.07430505]
[1741845085699,0.14216157,123.46,123.41,39.07430505]
[1741845085898,0.14216157,123.46,123.39,8.1039]
[1741845086086,0.14216157,123.46,123.41,39.07430505]
[1741845086694,0.14216157,123.46,123.4,39.07430505]
[1741845086695,39.07430505,123.46,123.4,39.07430505]
[1741845087601,39.07430505,123.46,123.4,47.17770505]
[1741845088305,39.07430505,123.46,123.38,27.8419]
[1741845088306,39.35862819,123.44,123.39,39.07430505]
[1741845088600,0.28432314,123.45,123.39,39.07430505]
[1741845088808,39.07430505,123.46,123.4,39.07430505]
[1741845089005,39.35862819,123.47,123.41,39.07430505]
[1741845089184,39.35862819,123.45,123.41,20.0]
[1741845089491,0.14216157,123.45,123.41,20.0]
[1741845089693,0.14216157,123.45,123.39,39.07430505]
[1741845089694,0.14216157,123.44,123.39,39.07430505]
[1741845089897,39.21646662,123.45,123.39,46.67430505]
[1741845090093,39.21646662,123.44,123.39,7.6]
[1741845090313,0.28432314,123.4,123.34,6.4744]
[1741845090477,0.14216157,123.39,123.35,8.107]
[1741845091383,39.21646662,123.4,123.35,8.107]
[1741845091806,0.14216157,123.39,123.35,8.107]
[1741845092306,39.35862819,123.37,123.32,8.1089]
[1741845092495,39.07430505,123.38,123.33,39.07430505]
[1741845092692,39.35862819,123.38,123.32,8.1089]
[1741845092898,39.35862819,123.38,123.32,47.18320505]
[1741845093219,39.21646662,123.39,123.33,39.07430505]
[1741845093582,39.21646662,123.38,123.33,39.07430505]
[1741845093786,0.14216157,123.37,123.32,47.18320505]
[1741845094100,0.28432314,123.38,123.34,39.07430505]
[1741845094490,0.14216157,123.41,123.36,39.07430505]
[1741845094687,39.21646662,123.44,123.39,39.07430505]
[1741845094904,0.14216157,123.43,123.39,39.07430505]
[1741845095100,0.14216157,123.44,123.37,20.0]
[1741845095306,39.21646662,123.47,123.42,39.07430505]
[1741845095511,0.28432314,123.49,123.43,39.07430505]
[1741845095692,39.21646662,123.49,123.43,47.17550505]
[1741845096092,39.07430505,123.48,123.42,39.07430505]
[1741845096308,39.07430505,123.48,123.43,39.07430505]
[1741845096690,39.35862819,123.49,123.43,39.07430505]
[1741845097093,0.28432314,123.5,123.45,39.07430505]
[1741845097390,0.28432314,123.5,123.46,39.07430505]
[1741845097793,0.28432314,123.5,123.45,46.81430505]
[1741845098002,39.35862819,123.5,123.45,46.81430505]
[1741845098217,57.72395391,123.52,123.46,39.07430505]
[1741845098505,0.28432314,123.51,123.46,39.07430505]
[1741845098701,39.35862819,123.51,123.46,39.07430505]
[1741845099421,39.07430505,123.52,123.47,39.07430505]
[1741845099628,0.28432314,123.53,123.47,39.07430505]
[1741845099793,39.07430505,123.5,123.45,7.74]
[1741845100120,39.21646662,123.51,123.45,46.81430505]
[1741845100296,39.21646662,123.51,123.46,39.07430505]
[1741845100490,39.21646662,123.51,123.45,7.74]
[1741845100491,39.21646662,123.51,123.45,46.81430505]
[1741845100691,39.07430505,123.5,123.45,7.74]
[1741845100895,39.07430505,123.49,123.45,7.74]
[1741845101707,39.07430505,123.47,123.42,46.83430505]
[1741845101914,39.07430505,123.46,123.44,20.0]
[1741845102111,39.07430505,123.46,123.38,88.8738]
[1741845102112,39.07430505,123.45,123.43,20.0]
[1741845102423,39.07430505,123.45,123.39,46.83430505]
[1741845102597,39.07430505,123.45,123.4,39.07430505]
[1741845102797,0.28432314,123.44,123.39,7.76]
[1741845102999,39.07430505,123.45,123.39,46.83430505]
[1741845103920,47.45862819,123.46,123.4,39.07430505]
[1741845104419,39.07430505,123.45,123.4,39.07430505]
[1741845104999,47.45862819,123.46,123.4,39.07430505]
[1741845105403,39.07430505,123.45,123.39,46.83430505]
[1741845105907,0.28432314,123.42,123.38,39.07430505]
[1741845106130,0.14216157,123.41,123.36,39.07430505]
[1741845106419,39.07430505,123.41,123.36,39.07430505]
[1741845106601,0.28432314,123.39,123.34,214.34]
[1741845106804,0.28432314,123.37,123.33,46.83430505]
[1741845107017,8.1051,123.38,123.33,46.83430505]
[1741845107226,0.28432314,123.37,123.33,46.83430505]
[1741845107626,0.28432314,123.37,123.33,7.76]
[1741845107807,0.28432314,123.37,123.33,46.83430505]
[1741845108127,0.28432314,123.37,123.33,39.07430505]
[1741845108329,58.00827705,123.37,123.32,39.07430505]
[1741845109032,8.1063,123.36,123.32,39.07430505]
[1741845109222,27.039772,123.37,123.32,39.07430505]
[1741845110233,0.28432314,123.35,123.31,39.07430505]
[1741845110434,0.28432314,123.35,123.3,39.07430505]
[1741845110626,0.28432314,123.35,123.32,20.0]
[1741845110935,39.07430505,123.36,123.32,20.0]
[1741845111107,0.14216157,123.36,123.32,20.0]
[1741845111708,0.14216157,123.36,123.32,59.07430505]
[1741845111908,0.14216157,123.37,123.33,39.07430505]
[1741845112110,53.38276662,123.39,123.32,8.1088]
[1741845112312,0.14216157,123.35,123.3,39.07430505]
[1741845112635,0.28432314,123.35,123.3,39.07430505]
[1741845112809,0.28432314,123.35,123.31,59.07430505]
[1741845113010,0.28432314,123.36,123.31,59.07430505]
[1741845113830,82.5,123.38,123.33,39.07430505]
[1741845114038,8.1044,123.39,123.34,39.07430505]
[1741845114230,39.07430505,123.39,123.34,39.07430505]
[1741845114441,0.28432314,123.4,123.35,39.07430505]
[1741845114813,47.17740505,123.41,123.35,39.07430505]
[1741845115022,8.38672314,123.42,123.36,39.07430505]
[1741845115330,47.46102819,123.42,123.36,39.07430505]
[1741845115528,47.46102819,123.42,123.35,8.1069]
[1741845115729,47.46102819,123.42,123.36,39.07430505]
[1741845116230,39.07430505,123.41,123.36,39.07430505]
[1741845116428,39.07430505,123.41,123.35,39.07430505]
[1741845117024,39.07430505,123.41,123.36,39.07430505]
[1741845117219,0.14216157,123.41,123.36,39.07430505]
[1741845117426,47.31966662,123.41,123.35,39.07430505]
[1741845117621,8.1032,123.41,123.36,39.07430505]
[1741845117824,8.1032,123.41,123.36,39.10430505]
[1741845118429,39.07430505,123.41,123.36,39.10430505]
[1741845119115,47.17670505,123.42,123.36,39.10430505]
[1741845119314,8.1024,123.42,123.36,39.10430505]
[1741845119652,8.1024,123.42,123.37,39.07430505]
[1741845120334,8.1024,123.42,123.36,8.1361]
[1741845120335,47.17670505,123.42,123.36,39.10430505]
[1741845120825,39.07430505,123.4,123.36,0.03]
[1741845121636,39.07430505,123.39,123.36,0.03]
[1741845121836,39.07430505,123.38,123.36,0.03]
[1741845122017,39.07430505,123.39,123.36,0.03]
[1741845122215,39.35862819,123.39,123.36,0.03]
[1741845122537,47.17930505,123.38,123.36,0.03]
[1741845122736,39.35862819,123.37,123.36,0.03]
[1741845123044,39.07430505,123.37,123.36,0.03]
[1741845123543,39.35862819,123.37,123.36,0.03]
[1741845124132,47.17930505,123.38,123.36,0.03]
[1741845124324,8.105,123.38,123.36,0.03]
[1741845124523,47.46312819,123.39,123.36,0.03]
[1741845125123,39.07430505,123.38,123.33,39.07430505]
[1741845125541,47.46312819,123.39,123.33,39.07430505]
[1741845125739,39.07430505,123.38,123.33,39.07430505]
[1741845126118,39.07430505,123.39,123.33,47.18240505]
[1741845126320,39.07430505,123.4,123.35,39.07430505]
[1741845127641,47.17830505,123.4,123.35,39.07430505]
[1741845127841,47.17830505,123.4,123.34,47.18170505]
[1741845128545,47.17830505,123.4,123.35,39.07430505]
[1741845128927,47.17830505,123.4,123.34,59.07430505]
[1741845129522,47.17830505,123.4,123.35,39.07430505]
[1741845129737,39.07430505,123.41,123.36,39.07430505]
[1741845130045,47.46122819,123.42,123.36,39.07430505]
[1741845130228,39.07430505,123.41,123.36,39.07430505]
[1741845130424,47.17780505,123.41,123.35,55.05100505]
[1741845131052,47.17780505,123.41,123.36,39.07430505]
[1741845131247,39.07430505,123.41,123.36,39.07430505]
[1741845131457,47.46122819,123.42,123.36,39.07430505]
[1741845131632,39.07430505,123.4,123.35,7.87]
[1741845132653,47.17820505,123.4,123.35,7.87]
[1741845133047,39.07430505,123.4,123.35,15.9769]
[1741845133227,0.14216157,123.42,123.36,39.07430505]
[1741845133428,8.1033,123.41,123.36,39.07430505]
[1741845135153,8.1033,123.41,123.36,47.18050505]